bitfinex/quotes_SOLUSD_20220119
["timestamp","ask_amount","ask_price","bid_price","bid_amount"]
[1642563978514,6.0,138.01,137.94,13.338]
[1642563978714,14.0218,138.02,137.94,13.338]
[1642563978914,6.0,138.01,137.94,13.338]
[1642563979114,14.0218,138.02,137.94,13.338]
[1642563979820,14.0218,138.02,137.94,24.2117]
[1642563980523,14.0218,138.02,137.94,21.3137]
[1642563982219,14.0218,138.02,137.94,10.8737]
[1642563982920,13.7718,138.02,137.94,10.8737]
[1642563983121,10.8738,138.02,137.94,10.8737]
[1642563984223,2.898,138.02,137.94,10.8737]
[1642563985326,24.317,138.06,137.95,13.588]
[1642563985525,6.0,138.05,137.98,10.8693]
[1642563985726,6.0,138.05,137.95,10.44]
[1642563985727,0.25,138.04,137.95,10.44]
[1642563986126,43.03121884,138.03,137.94,24.6048]
[1642563986426,43.03121884,138.03,137.93,62.8685747]
[1642563986653,40.13321884,138.03,137.93,62.8685747]
[1642563987051,40.13321884,138.03,137.94,0.25]
[1642563987452,51.00641884,138.03,137.95,10.8729]
[1642563988052,0.25,138.02,137.93,23.6164]
[1642563988251,3.148,138.02,137.93,23.6164]
[1642563988650,14.0217,138.02,137.92,10.8746]
[1642563988851,21.2317,138.02,137.88,27.8349]
[1642563989052,1.7738939,138.01,137.87,2.899]
[1642563989252,60.97938014,138.0,137.85,2.899]
[1642563989452,83.86278014,138.0,137.84,74.5278]
[1642563989653,37.2352395,137.96,137.84,85.4087]
[1642563989853,2.9,137.95,137.84,85.4087]
[1642563990054,15.944,137.95,137.84,85.4087]
[1642563990453,15.944,137.95,137.84,10.8809]
[1642563991457,10.881,137.93,137.84,10.8809]
[1642563991654,35.18072013,137.92,137.84,56.06781999]
[1642563992454,35.18072013,137.92,137.84,10.8809]
[1642563993456,35.18072013,137.92,137.84,48.56482842]
[1642563994054,35.18072013,137.92,137.85,0.25]
[1642563994256,16.88,137.95,137.87,10.8788]
[1642563994457,2.9,137.96,137.87,10.8788]
[1642563994756,2.9,137.96,137.88,0.25]
[1642563994958,24.5404,137.99,137.89,2.9]
[1642563995158,60.03763263,137.99,137.9,28.2032063]
[1642563995360,35.49723263,137.99,137.92,10.875]
[1642563995558,1.69533815,138.01,137.92,10.875]
[1642563995757,1.69533815,138.01,137.9,38.8932063]
[1642563995758,1.69533815,138.01,137.93,0.25]
[1642563995959,1.69533815,138.01,137.91,2.899]
[1642563996462,39.5191036,138.0,137.92,10.8746]
[1642563996660,42.4181036,138.0,137.92,10.8746]
[1642563996859,0.25,137.99,137.92,10.8746]
[1642563997059,42.4181036,138.0,137.92,10.8746]
[1642563998261,42.4181036,138.0,137.9,38.6432063]
[1642563998560,53.2937036,138.0,137.9,38.6432063]
[1642563999560,53.2937036,138.0,137.92,10.8751]
[1642564000160,0.25,137.99,137.92,10.8751]
[1642564000861,11.1261,137.99,137.88,13.339]
[1642564001063,8.899,137.98,137.87,47.3026]
[1642564001264,0.25,137.97,137.87,47.3026]
[1642564001461,2.9,137.96,137.87,47.3026]
[1642564001663,37.6033602,137.95,137.87,47.3026]
[1642564002062,37.6033602,137.95,137.87,58.1811]
[1642564002262,37.6033602,137.95,137.87,10.8785]
[1642564003863,0.25,137.94,137.87,10.8785]
[1642564004063,3.15,137.94,137.87,10.8785]
[1642564004464,2.9,137.94,137.87,10.8785]
[1642564004862,37.6033602,137.95,137.87,10.8785]
[1642564005463,37.1033602,137.95,137.87,10.8785]
[1642564005867,37.1033602,137.95,137.88,11.1278]
[1642564006165,37.1033602,137.95,137.88,10.8778]
[1642564006570,37.1033602,137.95,137.86,2.9]
[1642564006765,14.0303,137.94,137.86,10.8792]
[1642564006965,14.0303,137.94,137.82,26.9798]
[1642564007165,14.0303,137.94,137.83,0.25]
[1642564007666,43.04942239,137.92,137.83,0.25]
[1642564007864,45.94942239,137.92,137.83,0.25]
[1642564008471,56.83132239,137.92,137.84,10.8814]
[1642564008665,53.93132239,137.92,137.84,10.8814]
[1642564010069,43.04942239,137.92,137.84,10.8814]
[1642564010271,43.04942239,137.92,137.85,0.25]
[1642564010468,43.04942239,137.92,137.85,10.8807]
[1642564012371,43.04942239,137.92,137.85,82.0907]
[1642564012571,56.1996,137.95,137.85,82.0907]
[1642564012572,56.1996,137.95,137.86,47.13196648]
[1642564012802,0.25,137.94,137.86,47.13196648]
[1642564012973,6.25,137.94,137.86,47.13196648]
[1642564013173,6.25,137.94,137.86,57.57196648]
[1642564013576,36.90884724,137.93,137.86,57.57196648]
[1642564013976,36.90884724,137.93,137.86,128.78196648]
[1642564014174,2.9,137.97,137.87,3.15]
[1642564014375,2.9,137.99,137.88,10.8777]
[1642564014673,6.25,137.98,137.88,10.8777]
[1642564014875,2.9,137.97,137.88,10.8777]
[1642564015075,42.84420257,137.96,137.88,10.8777]
[1642564017077,53.72270257,137.96,137.88,10.8777]
[1642564018578,53.72270257,137.96,137.87,11.129]
[1642564020705,53.72270257,137.96,137.87,82.339]
[1642564022208,53.72270257,137.96,137.87,11.129]
[1642564023106,53.72270257,137.96,137.87,10.879]
[1642564023307,0.25,137.95,137.87,10.879]
[1642564023509,13.7801,137.94,137.86,2.9]
[1642564023708,0.25,137.93,137.86,2.9]
[1642564024111,44.75143566,137.93,137.86,2.9]
[1642564025008,55.38233566,137.93,137.86,2.9]
[1642564025410,44.50143566,137.93,137.86,13.7796]
[1642564026009,44.50143566,137.93,137.86,10.8796]
[1642564026210,2.9,137.96,137.87,0.25]
[1642564026510,2.9,137.99,137.89,10.8768]
[1642564026712,2.9,137.99,137.9,0.25]
[1642564026911,2.9,137.99,137.89,2.899]
[1642564027308,35.61671079,137.98,137.89,2.899]
[1642564028313,0.25,137.97,137.89,2.899]
[1642564028512,0.25,137.97,137.9,10.8763]
[1642564029916,0.25,137.97,137.89,10.8774]
[1642564030117,11.1277,137.97,137.87,2.9]
[1642564030318,2.9,137.96,137.86,47.8477]
[1642564030820,47.08452815,137.95,137.84,10.44]
[1642564031020,2.9,137.94,137.85,10.88]
[1642564031220,0.25,137.93,137.83,71.21]
[1642564031417,2.9,137.92,137.82,13.34]
[1642564031618,6.0,137.91,137.8,2.9]
[1642564031820,2.9,137.9,137.77,2.9]
[1642564032026,43.7220596,137.89,137.76,10.44]
[1642564032221,2.902,137.88,137.76,10.44]
[1642564032518,6.0,137.87,137.76,10.44]
[1642564032719,39.85669787,137.85,137.76,10.44]
[1642564033021,39.85669787,137.85,137.77,10.3862]
[1642564033820,39.85669787,137.85,137.76,10.44]
[1642564034624,39.85669787,137.85,137.76,52.90950099]
[1642564035527,39.85669787,137.85,137.77,0.25]
[1642564035728,2.902,137.88,137.77,74.362]
[1642564035931,2.902,137.89,137.77,84.802]
[1642564036128,2.902,137.9,137.77,85.062]
[1642564036330,9.15,137.91,137.77,85.062]
[1642564036731,38.86782599,137.9,137.8,10.8843]
[1642564036932,38.86782599,137.9,137.81,2.9]
[1642564037133,38.86782599,137.9,137.8,21.3243]
[1642564037331,3.15,137.89,137.8,21.3243]
[1642564038132,2.9,137.89,137.8,49.64689425]
[1642564038434,2.9,137.89,137.8,21.3243]
[1642564040061,2.9,137.89,137.8,92.5343]
[1642564040460,49.75102599,137.9,137.8,92.5343]
[1642564040665,3.15,137.89,137.8,21.3243]
[1642564040861,14.0345,137.89,137.8,21.3243]
[1642564041466,14.0345,137.89,137.8,10.44]
[1642564041664,6.0,137.88,137.78,23.6981]
[1642564041867,10.8867,137.86,137.78,23.6981]
[1642564042168,47.0697849,137.84,137.78,23.6981]
[1642564042365,47.0697849,137.84,137.75,10.8875]
[1642564042563,2.902,137.83,137.75,82.0975]
[1642564042764,47.0697849,137.84,137.75,82.0975]
[1642564043766,47.0697849,137.84,137.76,28.82525431]
[1642564044165,26.7655,137.87,137.77,0.25]
[1642564044366,26.7655,137.87,137.77,3.152]
[1642564044668,23.8635,137.87,137.78,10.44]
[1642564044966,2.902,137.89,137.78,81.65]
[1642564045166,49.05054438,137.88,137.79,48.69618041]
[1642564046364,49.05054438,137.88,137.79,11.1343]
[1642564046564,49.05054438,137.88,137.79,10.8843]
[1642564046766,0.25,137.87,137.78,10.8861]
[1642564046969,3.152,137.87,137.78,10.8861]
[1642564047368,14.0381,137.87,137.77,22.8576]
[1642564047767,15.8119939,137.87,137.77,22.8576]
[1642564048069,6.0,137.86,137.77,22.8576]
[1642564048269,3.152,137.85,137.75,10.44]
[1642564048467,10.8881,137.84,137.74,24.537]
[1642564048668,49.74389692,137.83,137.74,24.537]
[1642564048869,49.99389692,137.83,137.73,26.7634]
[1642564049070,49.99389692,137.83,137.74,0.25]
[1642564049270,51.76779082,137.83,137.73,2.902]
[1642564049470,16.8899,137.82,137.73,2.902]
[1642564049673,2.903,137.81,137.73,2.902]
[1642564049872,3.153,137.81,137.73,2.902]
[1642564050072,6.0,137.8,137.73,2.902]
[1642564050272,51.54198572,137.79,137.73,2.902]
[1642564051572,62.43478572,137.79,137.73,2.902]
[1642564052573,62.43478572,137.79,137.69,10.8929]
[1642564053074,6.0,137.78,137.68,10.8937]
[1642564053274,13.548,137.77,137.68,10.8937]
[1642564053773,35.06848885,137.76,137.68,10.8937]
[1642564053974,2.904,137.75,137.68,10.8937]
[1642564054174,3.154,137.75,137.67,10.44]
[1642564054375,3.154,137.75,137.66,45.8461]
[1642564054577,10.8966,137.73,137.66,45.8461]
[1642564054778,3.154,137.72,137.65,71.21]
[1642564054983,2.904,137.72,137.65,71.21]
[1642564055177,42.79265609,137.71,137.65,71.21]
[1642564055576,42.79265609,137.71,137.64,2.904]
[1642564055776,42.79265609,137.71,137.63,10.44]
[1642564055977,42.79265609,137.71,137.62,74.114]
[1642564056176,2.904,137.73,137.62,74.114]
[1642564056377,2.904,137.75,137.63,11.90110096]
[1642564056577,10.8928,137.78,137.68,10.8931]
[1642564056777,2.904,137.79,137.69,2.904]
[1642564056977,2.904,137.79,137.67,10.44]
[1642564057177,37.36104549,137.78,137.67,10.44]
[1642564057379,37.36104549,137.78,137.68,2.904]
[1642564057677,37.36104549,137.78,137.67,10.44]
[1642564057876,8.904,137.77,137.63,27.4508]
[1642564058077,19.344,137.77,137.63,24.5468]
[1642564058277,19.344,137.77,137.64,10.44]
[1642564058677,0.25,137.76,137.64,10.44]
[1642564058877,13.7991,137.75,137.64,21.3367]
[1642564059177,0.25,137.74,137.64,21.3367]
[1642564059377,2.904,137.73,137.64,21.3367]
[1642564059880,38.16664067,137.72,137.64,21.3367]
[1642564060281,46.0,137.71,137.59,7.62152117]
[1642564060481,28.114,137.71,137.61,2.905]
[1642564060679,28.114,137.71,137.6,10.44]
[1642564060680,6.0,137.7,137.58,10.44]
[1642564060881,6.0,137.7,137.59,2.906]
[1642564061081,11.15,137.69,137.6,10.9005]
[1642564061281,35.01370698,137.68,137.6,10.9005]
[1642564061482,35.01370698,137.68,137.58,13.344]
[1642564061682,0.25,137.67,137.58,13.344]
[1642564061880,9.156,137.67,137.58,10.44]
[1642564062384,8.906,137.67,137.58,10.44]
[1642564062581,11.1523,137.66,137.56,71.21]
[1642564062780,2.906,137.65,137.56,71.21]
[1642564062982,13.8083,137.66,137.56,74.116]
[1642564063183,10.9023,137.66,137.56,2.906]
[1642564063381,42.44950345,137.64,137.56,43.49752479]
[1642564063583,42.44950345,137.64,137.56,54.40032479]
[1642564063781,26.2914,137.68,137.56,54.40032479]
[1642564063981,2.906,137.69,137.57,10.44]
[1642564064180,13.346,137.7,137.58,0.25]
[1642564064382,13.346,137.7,137.58,1.70753586]
[1642564064582,2.906,137.7,137.6,10.8995]
[1642564064781,41.7236924,137.69,137.61,0.25]
[1642564064985,41.7236924,137.69,137.61,1.70714184]
[1642564065184,41.7236924,137.69,137.62,1.45714184]
[1642564065383,26.845,137.74,137.62,11.89714184]
[1642564065585,26.845,137.74,137.66,10.8948]
[1642564065786,26.1461,137.75,137.63,3.154]
[1642564065985,26.1461,137.75,137.63,13.594]
[1642564066385,46.2755218,137.74,137.64,37.55568934]
[1642564066588,46.2755218,137.74,137.64,48.45198934]
[1642564066786,2.904,137.75,137.65,0.25]
[1642564066986,10.44,137.81,137.66,10.44]
[1642564067188,2.904,137.8,137.67,3.153]
[1642564067387,2.904,137.81,137.67,13.593]
[1642564067589,10.892,137.79,137.68,10.8934]
[1642564067787,47.11472163,137.77,137.67,53.69581924]
[1642564067986,2.904,137.76,137.67,10.44]
[1642564068790,2.904,137.76,137.67,21.3346]
[1642564068987,47.11472163,137.77,137.68,41.63535249]
[1642564069186,10.8935,137.78,137.68,41.63535249]
[1642564069187,2.904,137.79,137.68,44.78935249]
[1642564069387,10.44,137.82,137.69,11.89714184]
[1642564069388,2.904,137.82,137.69,11.89714184]
[1642564069686,36.4655,137.86,137.7,74.363]
[1642564069886,10.8888,137.83,137.72,10.8902]
[1642564070090,38.3865265,137.82,137.71,10.44]
[1642564070487,6.0,137.81,137.71,10.44]
[1642564070688,2.903,137.8,137.71,10.44]
[1642564071390,49.62909026,137.79,137.72,35.30015479]
[1642564071588,49.62909026,137.79,137.72,35.55015479]
[1642564071788,49.62909026,137.79,137.73,2.903]
[1642564071988,2.903,137.85,137.73,2.903]
[1642564072188,2.903,137.85,137.74,0.25]
[1642564072819,40.32428498,137.84,137.74,0.25]
[1642564073016,40.32428498,137.84,137.75,10.888]
[1642564073215,40.32428498,137.84,137.75,46.97265044]
[1642564073818,40.32428498,137.84,137.76,0.25]
[1642564074016,2.903,137.85,137.77,10.8866]
[1642564074217,2.902,137.86,137.77,10.8866]
[1642564075019,45.67285342,137.85,137.77,10.8866]
[1642564075619,45.67285342,137.85,137.75,10.8878]
[1642564075820,3.152,137.84,137.73,10.44]
[1642564076121,3.152,137.84,137.71,10.44]
[1642564076321,6.0,137.83,137.71,10.44]
[1642564076620,51.47734187,137.82,137.71,10.44]
[1642564076821,51.47734187,137.82,137.72,0.25]
[1642564077021,48.57434187,137.82,137.72,0.25]
[1642564078022,2.903,137.83,137.74,10.889]
[1642564078223,23.4236,137.86,137.75,71.46]
[1642564078421,10.44,137.89,137.75,75.81674466]
[1642564078622,4.22743782,137.88,137.76,1.45474466]
[1642564078822,4.22743782,137.88,137.77,0.25]
[1642564079024,41.78658162,137.87,137.77,36.49459165]
[1642564079224,41.78658162,137.87,137.78,10.885]
[1642564079723,41.78658162,137.87,137.76,11.89474466]
[1642564079724,0.25,137.86,137.76,11.89474466]
[1642564079924,3.152,137.86,137.76,10.44]
[1642564080126,14.0387,137.86,137.76,21.328]
[1642564080327,6.0,137.85,137.73,10.44]
[1642564080524,6.0,137.85,137.7,10.44]
[1642564080525,13.342,137.84,137.7,10.44]
[1642564080727,67.80785598,137.83,137.7,45.6073328]
[1642564080924,2.903,137.82,137.7,45.6073328]
[1642564081125,3.153,137.82,137.7,45.6073328]
[1642564081526,35.30678452,137.8,137.7,56.4992328]
[1642564081725,38.20978452,137.8,137.7,56.4992328]
[1642564082127,38.20978452,137.8,137.7,57.95397746]
[1642564082328,38.20978452,137.8,137.7,21.3319]
[1642564082527,49.10088452,137.8,137.7,21.3319]
[1642564082728,0.25,137.79,137.68,13.7964]
[1642564082930,2.904,137.78,137.67,2.904]
[1642564083128,6.0,137.77,137.68,0.25]
[1642564083328,45.04306472,137.76,137.68,0.25]
[1642564084329,45.04306472,137.76,137.68,11.1439]
[1642564084529,45.04306472,137.76,137.69,2.904]
[1642564085633,0.25,137.75,137.69,2.904]
[1642564085831,0.25,137.75,137.65,33.3981]
[1642564086030,2.904,137.74,137.65,10.44]
[1642564086230,47.37637051,137.73,137.65,10.44]
[1642564086632,2.904,137.72,137.65,10.44]
[1642564086831,13.8021,137.72,137.62,2.904]
[1642564087130,0.25,137.71,137.61,21.3388]
[1642564087331,2.904,137.7,137.61,21.3388]
[1642564087530,2.904,137.7,137.61,10.44]
[1642564087531,36.89010798,137.69,137.61,10.44]
[1642564087930,36.89010798,137.69,137.61,9.94]
[1642564088532,47.79050798,137.69,137.61,9.94]
[1642564088935,3.154,137.68,137.58,2.904]
[1642564089236,9.154,137.68,137.58,2.904]
[1642564089433,1.7738939,137.67,137.58,2.904]
[1642564089634,61.89783477,137.66,137.58,2.904]
[1642564089836,61.89783477,137.66,137.53,10.44]
[1642564090036,50.99483477,137.66,137.53,20.81889091]
[1642564090234,50.99483477,137.66,137.54,73.867]
[1642564090235,48.08883477,137.66,137.54,73.867]
[1642564090439,42.08883477,137.66,137.55,10.44]
[1642564090638,13.8056,137.71,137.56,2.906]
[1642564090835,2.906,137.73,137.57,10.44]
[1642564091036,23.3791,137.75,137.58,2.904]
[1642564091238,23.3791,137.75,137.59,34.2656]
[1642564091437,23.3791,137.75,137.6,2.904]
[1642564091663,41.29623986,137.74,137.61,10.44]
[1642564091867,2.904,137.74,137.64,10.8954]
[1642564092065,25.6556,137.8,137.65,13.344]
[1642564092266,25.6556,137.8,137.65,2.904]
[1642564092564,38.17022599,137.8,137.65,2.904]
[1642564092764,35.1837,137.79,137.65,10.8955]
[1642564092964,41.02199214,137.78,137.66,48.86238984]
[1642564093568,41.02199214,137.78,137.67,0.25]
[1642564093765,41.02199214,137.78,137.67,10.69]
[1642564093965,38.11799214,137.78,137.67,21.5838]
[1642564094565,38.11799214,137.78,137.67,10.44]
[1642564094866,2.904,137.77,137.64,2.904]
[1642564095067,33.6583,137.77,137.64,2.904]
[1642564095365,10.8966,137.75,137.64,2.904]
[1642564095566,51.19122684,137.74,137.64,46.95250171]
[1642564095768,51.44122684,137.74,137.64,44.04850171]
[1642564096167,51.44122684,137.74,137.65,0.25]
[1642564096768,51.44122684,137.74,137.64,10.8962]
[1642564096968,62.33802684,137.74,137.61,10.44]
[1642564097167,23.9988,137.73,137.6,22.8073]
[1642564097367,2.904,137.72,137.59,13.344]
[1642564097569,30.2535,137.71,137.56,2.904]
[1642564097767,38.57168406,137.7,137.57,39.4286707]
[1642564097968,38.57168406,137.7,137.57,49.8686707]
[1642564098169,6.0,137.69,137.58,0.25]
[1642564098370,35.41568406,137.7,137.59,2.906]
[1642564098668,35.41568406,137.7,137.61,10.8982]
[1642564098868,35.41568406,137.7,137.61,13.8022]
[1642564099167,35.41568406,137.7,137.62,0.25]
[1642564099368,34.6117,137.73,137.62,0.25]
[1642564099570,23.7137,137.73,137.63,10.897]
[1642564099770,23.7137,137.73,137.64,0.25]
[1642564099972,23.7137,137.73,137.62,0.25]
[1642564100182,23.7137,137.73,137.63,2.904]
[1642564100373,36.34989394,137.72,137.64,47.07948952]
[1642564100573,36.34989394,137.72,137.64,47.32948952]
[1642564100775,36.34989394,137.72,137.64,47.07948952]
[1642564101075,36.34989394,137.72,137.63,2.904]
[1642564101076,47.24819394,137.72,137.63,2.904]
[1642564101273,3.154,137.71,137.59,10.44]
[1642564101477,32.0517,137.71,137.6,2.904]
[1642564101680,33.8255939,137.71,137.57,2.904]
[1642564101876,44.2655939,137.71,137.56,63.82257358]
[1642564102077,55.1651939,137.71,137.56,63.82257358]
[1642564102674,55.1651939,137.71,137.56,39.79287358]
[1642564103475,55.1651939,137.71,137.56,50.69557358]
[1642564103877,53.3913,137.71,137.56,50.69557358]
[1642564104075,42.7013,137.71,137.56,50.69557358]
[1642564104677,8.72,137.7,137.56,39.79287358]
[1642564104877,10.9045,137.66,137.56,39.79287358]
[1642564105078,45.00380791,137.65,137.56,39.79287358]
[1642564105277,42.09780791,137.65,137.56,48.51287358]
[1642564105677,2.906,137.7,137.57,74.366]
[1642564105878,28.5232,137.71,137.58,8.72]
[1642564106080,22.5232,137.71,137.59,74.116]
[1642564106281,24.3046,137.72,137.6,8.72]
[1642564106479,24.3046,137.72,137.61,2.904]
[1642564106680,24.3046,137.72,137.62,56.39570132]
[1642564106881,24.3046,137.72,137.63,2.904]
[1642564107082,45.9163021,137.71,137.63,3.154]
[1642564107282,45.9163021,137.71,137.65,44.67541954]
[1642564107680,24.3046,137.72,137.65,44.67541954]
[1642564108283,35.203,137.72,137.62,8.72]
[1642564108482,6.25,137.71,137.58,11.624]
[1642564108683,23.5334,137.7,137.56,11.624]
[1642564108888,2.906,137.69,137.56,11.624]
[1642564109083,23.5334,137.7,137.56,11.624]
[1642564109084,26.4394,137.7,137.56,11.624]
[1642564109283,36.12345827,137.68,137.57,44.19167323]
[1642564109683,0.25,137.67,137.57,44.19167323]
[1642564109883,2.906,137.66,137.56,11.624]
[1642564110284,0.25,137.65,137.56,2.904]
[1642564110483,2.906,137.64,137.56,2.904]
[1642564111085,44.780455,137.63,137.57,41.52422498]
[1642564111491,44.780455,137.63,137.54,8.72]
[1642564111785,55.685755,137.63,137.55,0.25]
[1642564112888,2.907,137.62,137.54,8.72]
[1642564113087,3.157,137.62,137.54,8.72]
[1642564113288,14.0632,137.62,137.54,8.72]
[1642564113997,14.0632,137.62,137.51,8.72]
[1642564114290,43.35187844,137.6,137.5,35.51788905]
[1642564114490,13.8166,137.59,137.5,35.51788905]
[1642564114690,20.0666,137.59,137.48,10.86791565]
[1642564115494,20.0666,137.59,137.47,8.72]
[1642564115694,20.0666,137.59,137.48,46.8591388]
[1642564117098,20.0666,137.59,137.47,8.72]
[1642564118024,19.8166,137.59,137.48,35.4565982]
[1642564118224,43.35187844,137.6,137.49,2.908]
[1642564118426,43.35187844,137.6,137.49,13.08352303]
[1642564118625,43.35187844,137.6,137.5,0.25]
[1642564118823,43.35187844,137.6,137.51,13.8141]
[1642564119027,43.35187844,137.6,137.51,2.908]
[1642564119225,2.907,137.59,137.51,2.908]
[1642564119424,3.157,137.59,137.51,2.908]
[1642564119625,6.0,137.58,137.51,2.908]
[1642564119831,43.51355922,137.57,137.51,2.908]
[1642564120031,43.51355922,137.57,137.51,44.3042415]
[1642564120427,71.21,137.56,137.47,2.908]
[1642564120632,2.908,137.56,137.44,11.70762902]
[1642564121226,0.25,137.55,137.44,11.70762902]
[1642564121428,11.1617,137.55,137.45,46.32121015]
[1642564121637,39.21070379,137.54,137.45,46.32121015]
[1642564121833,39.21070379,137.54,137.46,0.25]
[1642564122629,39.21070379,137.54,137.46,11.1609]
[1642564124731,39.21070379,137.54,137.46,0.25]
[1642564126034,50.12270379,137.54,137.46,0.25]
[1642564126334,50.12270379,137.54,137.45,0.25]
[1642564128237,50.12270379,137.54,137.45,11.1621]
[1642564128437,50.12270379,137.54,137.46,35.89779781]
[1642564128638,39.21070379,137.54,137.46,35.89779781]
[1642564129545,2.908,137.56,137.47,0.25]
[1642564129746,25.7695,137.58,137.47,0.25]
[1642564129948,22.8615,137.58,137.47,0.25]
[1642564130147,2.908,137.61,137.48,2.908]
[1642564130547,49.32021295,137.6,137.49,49.89028377]
[1642564130747,2.908,137.61,137.5,2.908]
[1642564130952,10.9055,137.62,137.5,2.908]
[1642564131149,10.9055,137.62,137.51,0.25]
[1642564131349,10.9055,137.62,137.52,2.907]
[1642564131549,2.907,137.61,137.51,0.25]
[1642564131749,2.907,137.61,137.51,11.1563]
[1642564131750,47.7041967,137.6,137.51,11.1563]
[1642564131952,47.7041967,137.6,137.52,42.06558897]
[1642564132250,36.7971967,137.6,137.52,42.06558897]
[1642564132848,47.7041967,137.6,137.49,2.907]
[1642564133049,3.157,137.59,137.49,8.72]
[1642564133250,4.9308939,137.59,137.49,8.72]
[1642564133451,4.9308939,137.59,137.47,24.7037]
[1642564133652,27.4781939,137.59,137.48,0.25]
[1642564133851,27.4781939,137.59,137.48,48.80609379]
[1642564134052,38.3866939,137.59,137.48,59.71539379]
[1642564134252,36.3628,137.59,137.48,59.71539379]
[1642564134852,2.908,137.61,137.48,59.71539379]
[1642564135052,22.8802,137.64,137.49,8.72]
[1642564135053,24.6540939,137.64,137.49,8.72]
[1642564135252,22.8802,137.64,137.53,10.9043]
[1642564135454,2.908,137.66,137.54,8.72]
[1642564135853,0.25,137.65,137.55,37.59965879]
[1642564136052,2.0238939,137.65,137.55,37.59965879]
[1642564136253,0.25,137.65,137.55,37.59965879]
[1642564136455,0.25,137.65,137.56,10.9029]
[1642564136682,4.51595409,137.67,137.57,0.25]
[1642564136882,1.60995409,137.67,137.57,3.156]
[1642564137279,1.60995409,137.67,137.56,2.906]
[1642564137480,2.906,137.66,137.55,64.52435879]
[1642564137679,49.50745609,137.66,137.55,61.61835879]
[1642564137880,51.28134999,137.66,137.55,37.34965879]
[1642564138179,51.28134999,137.66,137.56,0.25]
[1642564138381,49.50745609,137.66,137.56,0.25]
[1642564138582,2.906,137.66,137.56,11.1525]
[1642564139382,1.60995409,137.67,137.56,11.1525]
[1642564139588,10.9031,137.65,137.56,10.9025]
[1642564140184,10.9031,137.65,137.57,0.25]
[1642564140384,10.9031,137.65,137.56,10.9025]
[1642564140585,13.8091,137.65,137.56,10.9025]
[1642564140986,2.906,137.65,137.57,0.25]
[1642564141189,1.60995409,137.67,137.59,10.8998]
[1642564141387,13.3998939,137.7,137.59,10.8998]
[1642564141388,8.72,137.7,137.59,10.8998]
[1642564141685,11.626,137.7,137.56,7.83]
[1642564141885,7.7738939,137.69,137.54,8.72]
[1642564142091,10.904,137.64,137.54,8.72]
[1642564142287,3.157,137.63,137.55,10.9039]
[1642564142486,2.907,137.63,137.52,36.3456]
[1642564142689,47.13183586,137.62,137.53,48.28870834]
[1642564143488,47.13183586,137.62,137.54,10.9047]
[1642564143686,47.13183586,137.62,137.54,11.1547]
[1642564144790,24.8574,137.64,137.54,11.1547]
[1642564144990,27.7644,137.64,137.54,11.1547]
[1642564145890,35.26763127,137.63,137.54,11.1547]
[1642564146090,35.26763127,137.63,137.54,10.9047]
[1642564146293,35.26763127,137.63,137.56,10.903]
[1642564146491,38.17463127,137.63,137.51,35.0351]
[1642564146690,2.0238939,137.62,137.51,23.4081]
[1642564146889,2.0238939,137.62,137.42,109.05]